lending/lending_fUSD_20240810
["ID","MTS","AMOUNT","RATE_DAILY","PERIOD"]
[334591750,1723287057898,-152.222777,0.00013699,2]
[334591751,1723287057908,-8735.18,0.00013699,2]
[334591752,1723287057917,-678.9,0.00013699,2]
[334591753,1723287057927,-500.0,0.00013699,2]
[334591754,1723287057936,-2751.0,0.00013699,2]
[334591755,1723287057946,-200.0,0.00013699,2]
[334591756,1723287057955,-300.0,0.00013699,2]
[334591757,1723287057965,-300.0,0.00013699,2]
[334591758,1723287057974,-300.0,0.00013699,2]
[334591759,1723287057983,-300.0,0.00013699,2]
[334591760,1723287057993,-300.0,0.00013699,2]
[334591761,1723287058002,-300.0,0.00013699,2]
[334591762,1723287058012,-300.0,0.00013699,2]
[334591763,1723287058023,-300.0,0.00013699,2]
[334591764,1723287058032,-300.0,0.00013699,2]
[334591765,1723287058042,-300.0,0.00013699,2]
[334591766,1723287058051,-512.82168574,0.00013699,2]
[334591767,1723287058060,-150.0,0.00013699,2]
[334591768,1723287058070,-150.0,0.00013699,2]
[334591769,1723287058079,-300.0,0.00013699,2]
[334591770,1723287058089,-308.73065801,0.00013699,2]
[334591771,1723287058098,-151.833328,0.0001372,2]
[334591772,1723287058108,-150.0,0.00013741,2]
[334591773,1723287058117,-11730.3813962,0.0001376,2]
[334591774,1723287058126,-198.944865,0.00013791,2]
[334591775,1723287058136,-198.944861,0.00013791,2]
[334591776,1723287058145,-342.480342,0.00013791,2]
[334591777,1723287058154,-342.480332,0.00013791,2]
[334591778,1723287058163,-157.537129,0.00013791,2]
[334591779,1723287058172,-157.537134,0.00013791,2]
[334591780,1723287058181,-229.116179,0.00013791,2]
[334591781,1723287058191,-416.7568044,0.00013791,2]
[334591782,1723287058200,-2676.2718866,0.00013791,2]
[334591783,1723287058210,-698.0451919,0.00013799,2]
[334591784,1723287058220,-173.63189449,0.00013799,2]
[334591785,1723287058230,-539.840086,0.00013799,2]
[334591786,1723287058239,-539.840086,0.00013799,2]
[334591787,1723287058249,-158.732719,0.00013799,2]
[334591788,1723287058258,-174.069152,0.00013799,2]
[334591789,1723287058268,-201.256533,0.00013799,2]
[334591790,1723287058277,-1323.982044,0.00013799,2]
[334591791,1723287058287,-158.732724,0.00013799,2]
[334591792,1723287058297,-174.069144,0.00013799,2]
[334591793,1723287058307,-201.25653,0.00013799,2]
[334591794,1723287058316,-1323.982052,0.00013799,2]
[334591795,1723287058325,-151.0,0.00013799,2]
[334591796,1723287058335,-300.0,0.00013799,2]
[334591797,1723287058344,-300.0,0.00013799,2]
[334591798,1723287058353,-300.0,0.00013799,2]
[334591799,1723287058363,-300.0,0.00013799,2]
[334591800,1723287058372,-300.0,0.00013799,2]
[334591801,1723287058381,-300.0,0.00013799,2]
[334591802,1723287058392,-300.0,0.00013799,2]
[334591803,1723287058406,-300.0,0.00013799,2]
[334591804,1723287058416,-300.0,0.00013799,2]
[334591805,1723287058425,-300.0,0.00013799,2]
[334591806,1723287058434,-689.75983025,0.00013799,2]
[334591807,1723287058444,-152.911068,0.000138,2]
[334591808,1723287058454,-152.911078,0.000138,2]
[334591809,1723287058464,-151.0,0.000138,2]
[334591810,1723287058473,-151.787458,0.000138,2]
[334591811,1723287058483,-248.468568,0.000138,2]
[334591812,1723287058492,-151.0,0.000138,2]
[334591813,1723287058501,-354.269672,0.000138,2]
[334591814,1723287058511,-354.269665,0.000138,2]
[334591815,1723287058521,-151.0,0.000138,2]
[334591816,1723287058530,-453.247836,0.000138,2]
[334591817,1723287058539,-151.0,0.000138,2]
[334591818,1723287058548,-453.247838,0.000138,2]
[334591819,1723287058558,-329.551266,0.000138,2]
[334591820,1723287058568,-329.551276,0.000138,2]
[334591821,1723287058578,-210.344867,0.000138,2]
[334591822,1723287058587,-210.344873,0.000138,2]
[334591823,1723287058596,-151.0,0.000138,2]
[334591824,1723287058605,-154.076243,0.000138,2]
[334591825,1723287058614,-519.27529815,0.00013879,2]
[334591826,1723287058623,-480.6128944,0.0001389,2]
[334591827,1723287058632,-3513.4000928,0.0001389,2]
[334591828,1723287058642,-3513.4000928,0.0001389,2]
[334591829,1723287058651,-150.0,0.00013891,2]
[334591830,1723287058661,-466.83255127,0.00013896,2]
[334591831,1723287058670,-300.0,0.00013899,2]
[334591832,1723287058680,-2000.0,0.000139,2]
[334591833,1723287058689,-2000.0,0.000139,2]
[334591834,1723287058698,-1100.0,0.000139,5]
[334591835,1723287058707,-289446.717361,0.000139,3]
[334591836,1723287058718,-382.27247764,0.000139,2]
[334591837,1723287058727,-698.0451919,0.00013924,2]
[334591838,1723287058736,-173.63189449,0.00013924,2]
[334591839,1723287058745,-150.0,0.00013924,2]
[334591840,1723287058755,-150.0,0.00013924,2]
[334591841,1723287058764,-313.0,0.0001393,2]
[334591842,1723287058779,-150.81,0.00013973,2]
[334591843,1723287058789,-277.41,0.00013973,2]
[334591844,1723287058798,-818.58,0.00013973,2]
[334591845,1723287058808,-594.98831399,0.00013979,2]
[334591846,1723287058896,-155.0,0.00013986,2]
[334591847,1723287058906,-155.0,0.00013986,2]
[334591848,1723287058915,-211.03121184,0.00013989,2]
[334591849,1723287058925,-416.7568044,0.0001399,2]
[334591850,1723287058935,-2676.2718866,0.0001399,2]
[334591851,1723287058945,-947.0,0.00014,4]
[334591852,1723287058955,-502.0,0.00014,4]
[334591853,1723287058964,-266.86240562,0.00014,2]
[334591854,1723287058974,-29529.49821709,0.00014,4]
[334591855,1723287058983,-7884.245058,0.00014,2]
[334591856,1723287058992,-522.0,0.00014,2]
[334591857,1723287059002,-650.0,0.00014,2]
[334591858,1723287059011,-480.6128944,0.00014002,2]
[334591859,1723287059021,-11712.76842897,0.00014011,2]
[334591860,1723287059031,-150.0,0.00014041,2]
[334591861,1723287059040,-698.0451919,0.0001405,2]
[334591862,1723287059050,-173.63189449,0.0001405,2]
[334591863,1723287059059,-167.76,0.00014076,2]
[334591864,1723287059068,-793.0,0.00014164,2]
[334591865,1723287059077,-698.0451919,0.00014176,2]
[334591866,1723287059087,-173.63189449,0.00014176,2]
[334591867,1723287059096,-150.0,0.00014191,2]
[334591868,1723287059105,-150.0,0.00014201,2]
[334591869,1723287059115,-150.0,0.00014201,2]
[334591870,1723287059124,-201.96418443,0.00014247,2]
[334591871,1723287059134,-382.7630373,0.00014247,2]
[334591872,1723287059144,-2974.399835,0.00014247,2]
[334591873,1723287059153,-155.0,0.00014261,2]
[334591874,1723287059163,-1583.0,0.00014282,2]
[334591875,1723287059173,-1257.0,0.00014282,2]
[334591876,1723287059183,-622.0,0.00014282,2]
[334591877,1723287059193,-1924.0,0.00014282,2]
[334591878,1723287059202,-845.356,0.00014282,2]
[334591879,1723287059211,-1894.0,0.00014282,2]
[334591880,1723287059221,-551.0,0.00014282,2]
[334591881,1723287059231,-1136.0,0.00014282,2]
[334591882,1723287059241,-3290.0,0.00014282,2]
[334591883,1723287059250,-150.0,0.00014282,2]
[334591884,1723287059260,-289.0,0.00014282,2]
[334591885,1723287059271,-2561.915,0.00014282,2]
[334591886,1723287059281,-150.0,0.00014282,2]
[334591887,1723287059291,-21751.0,0.00014282,2]
[334591888,1723287059300,-150.0,0.00014282,2]
[334591889,1723287059310,-1074.0,0.00014282,2]
[334591890,1723287059320,-150.0,0.00014283,2]
[334591891,1723287059330,-328.20287838,0.00014283,2]
[334591892,1723287059339,-328.20287838,0.00014283,2]
[334591893,1723287059349,-2000.0,0.000143,2]
[334591894,1723287059358,-698.0451919,0.00014302,2]
[334591895,1723287059368,-173.63189449,0.00014302,2]
[334591896,1723287059377,-150.0,0.00014341,2]
[334591897,1723287059387,-600.0,0.00014346,2]
[334591898,1723287059397,-600.0,0.00014346,2]
[334591899,1723287059411,-8735.18,0.00014384,2]
[334591900,1723287059420,-698.0451919,0.00014428,2]
[334591901,1723287059429,-173.63189449,0.00014428,2]
[334591902,1723287059447,-500.0,0.00014458,2]
[334591903,1723287059463,-500.0,0.00014458,2]
[334591904,1723287059483,-150.0,0.00014478,2]
[334591905,1723287059502,-150.0,0.00014492,2]
[334591906,1723287059519,-2000.0,0.000145,2]
[334591907,1723287059536,-522.0,0.000145,2]
[334591908,1723287059554,-698.0451919,0.00014554,2]
[334591909,1723287059568,-173.63189449,0.00014554,2]
[334591910,1723287059584,-167.76,0.00014586,2]
[334591911,1723287059602,-150.0,0.00014642,2]
[334591912,1723287059620,-313.0,0.0001465,2]
[334591913,1723287059631,-1518.27798136,0.00014667,2]
[334591914,1723287059650,-528.84642051,0.00014667,2]
[334591915,1723287059665,-698.0451919,0.0001468,2]
[334591916,1723287059681,-173.63189449,0.0001468,2]
[334591917,1723287059695,-1001.06,0.0001468,2]
[334591918,1723287059710,-1000.0,0.00014713,2]
[334591919,1723287059724,-296.3,0.00014723,2]
[334591920,1723287059740,-152.0,0.00014726,3]
[334591921,1723287059754,-1231.28853394,0.00014729,2]
[334591922,1723287059768,-150.0,0.00014755,2]
[334591923,1723287059782,-150.0,0.00014792,2]
[334591924,1723287059797,-3513.4000928,0.00014795,2]
[334591925,1723287059811,-500.0,0.00014796,2]
[334591926,1723287059825,-500.0,0.00014796,2]
[334591927,1723287059839,-500.0,0.00014796,2]
[334591928,1723287059853,-698.0451919,0.00014805,2]
[334591929,1723287059867,-173.63189449,0.00014805,2]
[334591930,1723287059881,-793.0,0.00014872,2]
[334591931,1723287059895,-2000.0,0.000149,2]
[334591932,1723287059909,-2000.0,0.000149,2]
[334591933,1723287059923,-211.44168176,0.000149,2]
[334591934,1723287059939,-211.44168176,0.000149,2]
[334591935,1723287059953,-382.27247764,0.000149,2]
[334591936,1723287059966,-698.0451919,0.00014931,2]
[334591937,1723287059980,-173.63189449,0.00014931,2]
[334591938,1723287059995,-150.0,0.00014942,2]
[334591939,1723287060009,-604.02,0.00014961,2]
[334591940,1723287060024,-9661.132351,0.00015,2]
[334591941,1723287060039,-220.82674314,0.00015,2]
[334591942,1723287060056,-298.88482786,0.00015,2]
[334591943,1723287060072,-194.7247184,0.00015,2]
[334591944,1723287060087,-495.0,0.00015,2]
[334591945,1723287060102,-1000.0,0.00015,4]
[334591946,1723287060117,-511.0,0.00015,2]
[334591947,1723287060133,-1930.17292371,0.00015,2]
[334591948,1723287060148,-962.75219129,0.00015,10]
[334591949,1723287060162,-495.0,0.00015,2]
[334591950,1723287060177,-522.0,0.00015,2]
[334591951,1723287060192,-9246.0,0.00015,2]
[334591952,1723287060209,-1001.06,0.00015,2]
[334591953,1723287060236,-315.98,0.00015,2]
[334591954,1723287060262,-1111.0,0.00015,2]
[334591955,1723287060292,-171.46,0.00015011,2]
[334591956,1723287060319,-150.0,0.00015032,2]
[334591957,1723287060347,-150.0,0.00015032,2]
[334591958,1723287060372,-698.0451919,0.00015057,2]
[334591959,1723287060512,-173.63189449,0.00015057,2]
[334591960,1723287060529,-300.0,0.00015068,2]
[334591961,1723287060539,-8735.18,0.00015068,2]
[334591962,1723287060549,-2974.399835,0.00015068,2]
[334591963,1723287060559,-150.0,0.00015092,2]
[334591964,1723287060568,-500.0,0.000151,2]
[334591965,1723287060578,-698.0451919,0.00015183,2]
[334591966,1723287060587,-173.63189449,0.00015183,2]
[334591967,1723287060596,-152.0,0.0001524,4]
[334591968,1723287060606,-150.0,0.00015242,2]
[334591969,1723287060615,-172.82,0.0001528,2]
[334591970,1723287060625,-2000.0,0.000153,2]
[334591971,1723287060635,-698.0451919,0.00015309,2]
[334591972,1723287060645,-173.63189449,0.00015309,2]
[334591973,1723287060656,-150.0,0.00015309,2]
[334591974,1723287060666,-150.0,0.00015309,2]
[334591975,1723287060676,-600.0,0.00015346,2]
[334591976,1723287060685,-600.0,0.00015346,2]
[334591977,1723287060695,-624.2402766,0.00015369,2]
[334591978,1723287060704,-313.0,0.0001537,2]
[334591979,1723287060713,-150.0,0.00015392,2]
[334591980,1723287060723,-698.0451919,0.00015435,2]
[334591981,1723287060733,-173.63189449,0.00015435,2]
[334591982,1723287060742,-2000.0,0.000155,2]
[334591983,1723287060752,-522.0,0.000155,3]
[334591984,1723287060762,-150.0,0.00015542,2]
[334591985,1723287060772,-698.0451919,0.00015561,2]
[334591986,1723287060783,-173.63189449,0.00015561,2]
[334591987,1723287060793,-11712.76842897,0.00015567,2]
[334591988,1723287060802,-150.0,0.00015586,2]
[334591989,1723287060812,-793.0,0.00015615,2]
[334591990,1723287060822,-461.91815354,0.00015646,2]
[334591991,1723287060832,-150.0,0.00015655,2]
[334591992,1723287060842,-698.0451919,0.00015686,2]
[334591993,1723287060853,-173.63189449,0.00015686,2]
[334591994,1723287060862,-150.0,0.00015693,2]
[334591995,1723287060872,-8735.18,0.00015753,2]
[334591996,1723287060882,-152.0,0.00015754,5]
[334591997,1723287060891,-698.0451919,0.00015812,2]
[334591998,1723287060901,-173.63189449,0.00015812,2]
[334591999,1723287060910,-167.0,0.00015831,2]
[334592000,1723287060920,-150.0,0.00015843,2]
[334592001,1723287060929,-150.0,0.00015863,2]
[334592002,1723287060939,-150.0,0.00015863,2]
[334592003,1723287060948,-2974.399835,0.0001589,2]
[334592004,1723287060958,-210.98006387,0.00015897,2]
[334592005,1723287060967,-155.0,0.00015897,2]
[334592006,1723287060977,-2000.0,0.000159,2]
[334592007,1723287060986,-2000.0,0.000159,2]
[334592008,1723287060995,-382.27247764,0.000159,2]
[334592009,1723287061005,-155.0,0.00015912,2]
[334592010,1723287061014,-698.0451919,0.00015938,2]
[334592011,1723287061024,-173.63189449,0.00015938,2]
[334592012,1723287061033,-150.0,0.00015993,2]
[334592013,1723287061043,-155.0,0.00015999,2]
[334592014,1723287061052,-500.0,0.00016,4]
[334592015,1723287061062,-522.0,0.00016,3]
[334592016,1723287061071,-700.0,0.00016,2]
[334592017,1723287061081,-2000.0,0.00016,2]
[334592018,1723287061090,-1744.06071,0.00016,2]
[334592019,1723287061100,-2000.0,0.0001601,2]
[334592020,1723287061110,-2000.0,0.0001602,2]
[334592021,1723287061120,-2927.708323,0.0001603,2]
[334592022,1723287061129,-152.25,0.00016034,2]
[334592023,1723287061139,-698.0451919,0.00016064,2]
[334592024,1723287061149,-173.63189449,0.00016064,2]
[334592025,1723287061158,-313.0,0.0001609,2]
[334592026,1723287061168,-500.0,0.00016102,2]
[334592027,1723287061177,-500.0,0.00016102,2]
[334592028,1723287061187,-9999.99,0.00016116,2]
[334592029,1723287061196,-150.0,0.0001614,2]
[334592030,1723287061205,-150.0,0.00016143,2]
[334592031,1723287061215,-315.98,0.0001616,2]
[334592032,1723287061225,-698.0451919,0.0001619,2]
[334592033,1723287061234,-173.63189449,0.0001619,2]
[334592034,1723287061244,-152.0,0.00016268,6]
[334592035,1723287061254,-150.0,0.00016293,2]
[334592036,1723287061263,-552.899999,0.000163,2]
[334592037,1723287061273,-698.0451919,0.00016316,2]
[334592038,1723287061283,-173.63189449,0.00016316,2]
[334592039,1723287061292,-151.0,0.00016321,2]
[334592040,1723287061302,-200.0,0.0001634,2]
[334592041,1723287061311,-167.0,0.00016354,2]
[334592042,1723287061321,-1001.06,0.0001636,2]
[334592043,1723287061330,-793.0,0.00016396,2]
[334592044,1723287061340,-150.0,0.00016416,2]
[334592045,1723287061349,-2000.0,0.00016438,2]
[334592046,1723287061359,-707.7,0.00016438,2]
[334592047,1723287061368,-300.0,0.00016438,2]
[334592048,1723287061377,-1500.0,0.00016438,5]
[334592049,1723287061386,-8735.18,0.00016438,2]
[334592050,1723287061396,-403.46539952,0.0001644,2]
[334592051,1723287061411,-500.0,0.0001644,2]
[334592052,1723287061421,-500.0,0.0001644,2]
[334592053,1723287061430,-698.0451919,0.00016442,2]
[334592054,1723287061441,-173.63189449,0.00016442,2]
[334592055,1723287061450,-150.0,0.00016443,2]
[334592056,1723287061460,-6790.04,0.000165,2]
[334592057,1723287061470,-552.9,0.000165,2]
[334592058,1723287061481,-522.0,0.000165,4]
[334592059,1723287061491,-150.0,0.00016524,2]
[334592060,1723287061501,-150.0,0.00016524,2]
[334592061,1723287061510,-150.0,0.00016524,2]
[334592062,1723287061521,-150.0,0.00016524,2]
[334592063,1723287061539,-150.0,0.00016524,2]
[334592064,1723287061548,-150.0,0.00016524,2]
[334592065,1723287061557,-150.0,0.00016524,2]
[334592066,1723287061567,-150.0,0.00016524,2]
[334592067,1723287061577,-150.0,0.00016524,2]
[334592068,1723287061586,-698.0451919,0.00016567,2]
[334592069,1723287061596,-173.63189449,0.00016567,2]
[334592070,1723287061605,-4974.41917328,0.00016581,2]
[334592071,1723287061615,-150.0,0.00016593,2]
[334592072,1723287061625,-2913.27,0.000166,7]
[334592073,1723287061635,-1231.28853394,0.00016644,2]
[334592074,1723287061644,-1001.06,0.0001668,2]
[334592075,1723287061654,-200.0,0.00016687,2]
[334592076,1723287061664,-200.0,0.00016687,2]
[334592077,1723287061673,-698.0451919,0.00016693,2]
[334592078,1723287061683,-173.63189449,0.00016693,2]
[334592079,1723287061693,-150.0,0.00016693,2]
[334592080,1723287061702,-150.0,0.00016693,2]
[334592081,1723287061712,-150.0,0.00016693,2]
[334592082,1723287061721,-4063.05426693,0.00016708,2]
[334592083,1723287061735,-2000.0,0.00016712,2]
[334592084,1723287061764,-2974.399835,0.00016712,2]
[334592085,1723287061806,-216.9,0.00016712,2]
[334592086,1723287061831,-150.0,0.00016743,2]
[334592087,1723287061856,-416.7568044,0.00016758,2]
[334592088,1723287061886,-2676.2718866,0.00016758,2]
[334592089,1723287061921,-416.7568044,0.00016769,2]
[334592090,1723287061958,-2676.2718866,0.00016769,2]
[334592091,1723287061982,-480.6128944,0.00016769,2]
[334592092,1723287061992,-480.6128944,0.00016769,2]
[334592093,1723287062001,-300.0,0.0001678,2]
[334592094,1723287062010,-300.0,0.0001678,2]
[334592095,1723287062023,-300.0,0.0001678,2]
[334592096,1723287062036,-300.0,0.0001678,2]
[334592097,1723287062046,-300.0,0.0001678,2]
[334592098,1723287062056,-300.0,0.0001678,2]
[334592099,1723287062069,-300.0,0.0001678,2]
[334592100,1723287062079,-300.0,0.0001678,2]
[334592101,1723287062088,-300.0,0.0001678,2]
[334592102,1723287062097,-300.0,0.0001678,2]
[334592103,1723287062107,-300.0,0.0001678,2]
[334592104,1723287062116,-585037.556425,0.00016781,7]
[334592105,1723287062125,-1653.84219495,0.00016781,7]
[334592106,1723287062135,-13674.1111374,0.00016781,7]
[334592107,1723287062144,-2776.87716672,0.00016781,7]
[334592108,1723287062153,-152.0,0.00016782,7]
[334592109,1723287062163,-1372.618,0.000168,13]
[334592110,1723287062172,-313.0,0.0001681,2]
[334592111,1723287062182,-698.0451919,0.00016819,2]
[334592112,1723287062195,-173.63189449,0.00016819,2]
[334592113,1723287062204,-167.0,0.00016876,2]
[334592114,1723287062214,-660.0,0.00016888,5]
[334592115,1723287062224,-150.0,0.00016893,2]
[334592116,1723287062234,-2000.0,0.000169,2]
[334592117,1723287062244,-2000.0,0.000169,2]
[334592118,1723287062253,-2257.0,0.000169,2]
[334592119,1723287062263,-382.27247764,0.000169,2]
[334592120,1723287062273,-698.0451919,0.00016945,2]
[334592121,1723287062282,-173.63189449,0.00016945,2]
[334592122,1723287062292,-155.0,0.00016953,2]
[334592123,1723287062301,-150.0,0.0001697,2]
[334592124,1723287062312,-2000.0,0.00016986,2]
[334592125,1723287062321,-256.48949717,0.00017,2]
[334592126,1723287062331,-1107.13747897,0.00017,4]
[334592127,1723287062340,-522.0,0.00017,4]
[334592128,1723287062350,-150.0,0.00017044,2]
[334592129,1723287062359,-698.0451919,0.00017071,2]
[334592130,1723287062368,-173.63189449,0.00017071,2]
[334592131,1723287062468,-11712.76842897,0.00017122,2]
[334592132,1723287062485,-150.0,0.00017194,2]
[334592133,1723287062495,-698.0451919,0.00017197,2]
[334592134,1723287062506,-173.63189449,0.00017197,2]
[334592135,1723287062515,-604.02,0.00017208,2]
[334592136,1723287062526,-832.69206212,0.00017216,2]
[334592137,1723287062536,-150.0,0.00017247,2]
[334592138,1723287062545,-2000.0,0.0001726,2]
[334592139,1723287062554,-1583.0,0.00017282,2]
[334592140,1723287062564,-1257.0,0.00017282,2]
[334592141,1723287062574,-622.0,0.00017282,2]
[334592142,1723287062584,-1924.0,0.00017282,2]
[334592143,1723287062593,-1894.0,0.00017282,2]
[334592144,1723287062603,-438.848,0.00017282,2]
[334592145,1723287062613,-1136.0,0.00017282,2]
[334592146,1723287062622,-3290.0,0.00017282,2]
[334592147,1723287062632,-150.0,0.00017282,2]
[334592148,1723287062641,-289.0,0.00017282,2]
[334592149,1723287062651,-150.0,0.00017282,2]
[334592150,1723287062660,-21751.0,0.00017282,2]
[334592151,1723287062670,-150.0,0.00017283,2]
[334592152,1723287062680,-152.0,0.00017297,8]
[334592153,1723287062690,-315.98,0.0001732,2]
[334592154,1723287062699,-698.0451919,0.00017323,2]
[334592155,1723287062709,-173.63189449,0.00017323,2]
[334592156,1723287062718,-150.0,0.00017344,2]
[334592157,1723287062728,-578.8096428,0.0001738,2]
[334592158,1723287062738,-167.0,0.00017399,2]
[334592159,1723287062747,-698.0451919,0.00017448,2]
[334592160,1723287062757,-173.63189449,0.00017448,2]
[334592161,1723287062766,-150.0,0.00017494,2]
[334592162,1723287062776,-522.0,0.000175,5]
[334592163,1723287062785,-313.0,0.0001752,2]
[334592164,1723287062795,-200.0,0.0001752,2]
[334592165,1723287062804,-150.0,0.00017524,2]
[334592166,1723287062814,-150.0,0.00017524,2]
[334592167,1723287062823,-2000.0,0.00017534,2]
[334592168,1723287062832,-678.9,0.00017534,2]
[334592169,1723287062842,-2974.399835,0.00017534,2]
[334592170,1723287062851,-698.0451919,0.00017574,2]
[334592171,1723287062861,-173.63189449,0.00017574,2]
[334592172,1723287062871,-3161.35376803,0.00017617,2]
[334592173,1723287062880,-150.0,0.00017644,2]
[334592174,1723287062890,-800.0,0.00017687,2]
[334592175,1723287062900,-800.0,0.00017687,2]
[334592176,1723287062910,-698.0451919,0.000177,2]
[334592177,1723287062920,-173.63189449,0.000177,2]
[334592178,1723287062931,-500.0,0.00017746,2]
[334592179,1723287062943,-500.0,0.00017746,2]
[334592180,1723287062953,-150.0,0.00017794,2]
[334592181,1723287062963,-6790.04,0.000178,2]
[334592182,1723287062972,-150.0,0.00017801,2]
[334592183,1723287062982,-2000.0,0.00017808,2]
[334592184,1723287062994,-7388.32,0.00017808,2]
[334592185,1723287063003,-152.0,0.00017811,9]
[334592186,1723287063013,-698.0451919,0.00017826,2]
[334592187,1723287063028,-173.63189449,0.00017826,2]
[334592188,1723287063039,-552.9,0.000179,2]
[334592189,1723287063049,-552.899999,0.000179,2]
[334592190,1723287063059,-382.27247764,0.000179,2]
[334592191,1723287063069,-167.0,0.00017921,2]
[334592192,1723287063079,-150.0,0.00017944,2]
[334592193,1723287063089,-698.0451919,0.00017952,2]
[334592194,1723287063100,-173.63189449,0.00017952,2]
[334592195,1723287063110,-676.21482263,0.00018,2]
[334592196,1723287063120,-308.21306784,0.00018,2]
[334592197,1723287063130,-155.1402739,0.00018,2]
[334592198,1723287063140,-656.58438644,0.00018,2]
[334592199,1723287063149,-1119.23539642,0.00018,2]
[334592200,1723287063165,-5553.31971264,0.00018,2]
[334592201,1723287063174,-5031.41082049,0.00018,2]
[334592202,1723287063184,-522.0,0.00018,5]
[334592203,1723287063194,-750.0,0.00018,2]
[334592204,1723287063204,-23252.67228654,0.00018,2]
[334592205,1723287063214,-500.0,0.00018004,2]
[334592206,1723287063224,-700.0,0.00018007,2]
[334592207,1723287063234,-1000.0,0.00018017,2]
[334592208,1723287063243,-500.0,0.00018034,2]
[334592209,1723287063253,-1001.06,0.0001804,2]
[334592210,1723287063262,-500.0,0.0001804,2]
[334592211,1723287063274,-600.0,0.00018046,2]
[334592212,1723287063283,-500.0,0.00018054,2]
[334592213,1723287063292,-698.0451919,0.00018078,2]
[334592214,1723287063302,-173.63189449,0.00018078,2]
[334592215,1723287063312,-150.0,0.00018078,2]
[334592216,1723287063321,-150.0,0.00018078,2]
[334592217,1723287063330,-2000.0,0.00018082,2]
[334592218,1723287063339,-536.85213178,0.00018084,2]
[334592219,1723287063348,-500.0,0.00018084,2]
[334592220,1723287063358,-600.0,0.00018094,2]
[334592221,1723287063367,-150.0,0.00018094,2]
[334592222,1723287063377,-1674.05654256,0.000181,2]
[334592223,1723287063386,-3300.0,0.00018103,2]
[334592224,1723287063396,-500.0,0.00018122,2]
[334592225,1723287063409,-3400.0,0.0001814,2]
[334592226,1723287063418,-500.0,0.00018164,2]
[334592227,1723287063428,-500.0,0.00018173,2]
[334592228,1723287063437,-700.0,0.00018182,2]
[334592229,1723287063447,-1900.0,0.00018192,2]
[334592230,1723287063457,-698.0451919,0.00018204,2]
[334592231,1723287063466,-173.63189449,0.00018204,2]
[334592232,1723287063476,-1000.0,0.00018215,2]
[334592233,1723287063488,-313.0,0.0001824,2]
[334592234,1723287063498,-200.0,0.0001824,2]
[334592235,1723287063508,-150.0,0.00018245,2]
[334592236,1723287063518,-600.0,0.00018246,2]
[334592237,1723287063528,-989.7201883,0.0001825,2]
[334592238,1723287063538,-600.0,0.00018293,2]
[334592239,1723287063548,-3300.0,0.00018295,2]
[334592240,1723287063558,-500.0,0.00018321,2]
[334592241,1723287063568,-152.0,0.00018325,10]
[334592242,1723287063578,-698.0451919,0.00018329,2]
[334592243,1723287063588,-173.63189449,0.00018329,2]
[334592244,1723287063598,-150.0,0.00018355,2]
[334592245,1723287063608,-150.0,0.00018355,2]
[334592246,1723287063617,-2000.0,0.00018356,2]
[334592247,1723287063628,-2974.399835,0.00018356,2]
[334592248,1723287063638,-1001.06,0.0001836,2]
[334592249,1723287063647,-700.0,0.00018386,2]